Cogmind - Beta 10.2 @@@ ROGUE MODE // 2021.04.22 @ 23:13:17 Player: cavemonk Result: Escaped! Performance ------------- Evolutions (9) 4500 Regions Visited (31) 6200 Robots Destroyed (328) 1640 Value Destroyed (16701) 16701 Prototype IDs (57) 1140 Alien Tech Used (2) 400 Bonus (9706) 9706 TOTAL SCORE: 40287 Bonus ------- High Alert Combat Kills 1406 Follower Combat Kills 137 Entered Garrisons 1400 Used RIF Installer 3500 Aligned with FarCom 300 Met Data Miner 300 Met Zhirov 300 Win 3000 Friendly Fire -637 Cogmind --------- Core Integrity 1255/1600 Matter 131/300 Energy 52/1300 System Corruption 6% Temperature Cool (2) Movement Hovering (150) Ox2 Location To Epsilon Eridani Parts ------- > --- POWER (2) -------- Quantum Reactor > --- PROPULSION (8) --- Improved Gyrokinetic Inverter Improved Gyrokinetic Inverter Improved Gyrokinetic Inverter Antigrav Array > --- UTILITY (11) ----- Advanced Coolant Injector Large Storage Unit Improved Energy Well Improved Energy Well Advanced Thermal Shield > --- WEAPON (4) ------- (None) > --- INVENTORY (10) --- Light Particle Reactor Improved Gyrokinetic Inverter Improved Gyrokinetic Inverter Compact HERF Cannon Hypervelocity Mass Driver Hypervelocity Mass Driver Heavy Shock Bomb Launcher Fusion Bomb Launcher Fusion Bomb Launcher Plasma Sword Peak State ------------ > --- POWER ------------ Light Particle Reactor Quantum Reactor > --- PROPULSION ------- Improved Antigrav System Improved Antigrav System Improved Gyrokinetic Inverter Improved Gyrokinetic Inverter Improved Gyrokinetic Inverter Improved Gyrokinetic Inverter Antigrav Array > --- UTILITY ---------- Improved Fusion Compressor Advanced Coolant Injector Large Storage Unit Improved Energy Well Improved Energy Well Improved Propulsion Shielding Heavy Armor Plating Advanced Thermal Shield Advanced Shield Generator Improved Remote Force Field > --- WEAPON ----------- Gamma Rifle Gamma Rifle Enhanced Nova Cannon Plasma Sword > --- INVENTORY -------- Light Particle Reactor Improved Gyrokinetic Inverter Improved Gyrokinetic Inverter Compact HERF Cannon Compact HERF Cannon Hypervelocity Mass Driver Hypervelocity Mass Driver Heavy Shock Bomb Launcher Fusion Bomb Launcher Fusion Bomb Launcher [Rating: 176] Favorites ----------- Power Neutrino Core Engine Improved Deuterium Engine Power Core Neutrino Core Reactor Light Antimatter Reactor Propulsion Improved Treads Treads Improved Treads Leg Myomer Leg Wheel Armored Huge Wheel Hover Unit Improved Gyrokinetic Inverter Utility High-capacity Storage Unit Device Advanced Heat Sink Storage High-capacity Storage Unit Processor Advanced Signal Interpreter Hackware Advanced Hacking Suite Protection Improved Medium Armor Plating Weapon Gauss Rifle Energy Gun Tesla Rifle Energy Cannon Beam Cannon Ballistic Gun Gauss Rifle Ballistic Cannon AWS/Autocannon Launcher Mini Grenade Launcher Special Weapon Improved Remote Datajack Impact Weapon Thunder Hammer Slashing Weapon Chainsword Build | -11 -10 -10 -10 -9 -8 -8 -7 -7 -7 -7 -6 -6 -6 -6 -6 -6 -5 -5 -5 -5 -5 -5 -5 -4 -4 -4 -4 -4 -3 -2 -1 ------- Run | Scr Mat Min Exi Min Mat Gar Fac Gar Fac Gar Fac Gar Fac Low Low Dat Pro Fac Gar Fac Upp Upp Zhi Pro Fac Gar Fac Gar Res Res Acc Slots Evolved 18 | . . . . . 4 . 2 . . . 2 . . . . . . 2 . . . . . . 2 . . . 2 2 2 Power 1 | . . . . . . . . . . . . . . . . . . . . . . . . . . . . . 1 . . Propulsion 6 | . . . . . . . 2 . . . 2 . . . . . . . . . . . . . . . . . . 1 1 Utility 9 | . . . . . 2 . . . . . . . . . . . . 2 . . . . . . 2 . . . 1 1 1 Weapon 2 | . . . . . 2 . . . . . . . . . . . . . . . . . . . . . . . . . . Parts Attached 574 | 4 20 6 . 1 7 20 21 12 . 11 15 7 5 11 4 . 11 14 31 37 5 21 10 33 16 38 16 17 110 56 15 Power 49 | . 1 . . . . 2 . 6 . 3 . 2 1 . 2 . 1 3 1 1 . . 1 3 . 2 . . 13 5 2 Engine 17 | . 1 . . . . 2 . 5 . 3 . 1 . . 1 . 1 . 1 . . . . . . . . . 2 . . Core 12 | . . . . . . . . 1 . . . 1 . . . . . 3 . 1 . . 1 3 . 1 . . 1 . . Reactor 20 | . . . . . . . . . . . . . 1 . 1 . . . . . . . . . . 1 . . 10 5 2 Propulsion 114 | 3 9 . . . . 3 8 . . . 11 . 1 3 1 . 7 3 9 1 . 3 3 9 . 9 . . 20 10 1 Treads 40 | 1 5 . . . . 3 2 . . . 1 . . 2 . . 3 3 5 . . 3 2 6 . 1 . . 3 . . Leg 20 | . . . . . . . . . . . . . . . . . 2 . 4 . . . . 3 . 8 . . 3 . . Wheel 15 | 2 4 . . . . . 2 . . . . . . 1 1 . . . . 1 . . . . . . . . 4 . . Hover 39 | . . . . . . . 4 . . . 10 . 1 . . . 2 . . . . . 1 . . . . . 10 10 1 Flight . | . . . . . . . . . . . . . . . . . . . . . . . . . . . . . . . . Utility 166 | 1 3 1 . . 3 4 5 . . . 4 . . 2 . . 2 2 7 18 2 6 5 8 7 15 2 9 37 19 4 Device 85 | . 1 . . . . . . . . . 1 . . 1 . . . 2 3 9 1 4 2 4 4 12 1 4 22 12 2 Storage 28 | 1 2 1 . . 2 2 4 . . . 3 . . . . . 1 . 1 3 . . . . . 1 . . 5 2 . Processor 8 | . . . . . 1 . . . . . . . . 1 . . . . . . . . . . . . . . 4 2 . Hackware 12 | . . . . . . . . . . . . . . . . . . . 3 2 . . . . . . 1 2 1 2 1 Protection 33 | . . . . . . 2 1 . . . . . . . . . 1 . . 4 1 2 3 4 3 2 . 3 5 1 1 Artifact . | . . . . . . . . . . . . . . . . . . . . . . . . . . . . . . . . Weapon 245 | . 7 5 . 1 4 11 8 6 . 8 . 5 3 6 1 . 1 6 14 17 3 12 1 13 9 12 14 8 40 22 8 Energy Gun 51 | . 4 1 . . 1 2 4 . . . . . . . . . . 5 4 2 . 6 1 2 . 1 . 2 11 2 3 Energy Cannon 40 | . 2 3 . . . . . . . . . 2 1 . . . . 1 . 1 1 . . 3 2 1 . . 13 9 1 Ballistic Gun 30 | . . . . . . . . . . 6 . 3 1 . . . . . 5 . . 1 . 3 3 4 3 . 1 . . Ballistic Cannon 42 | . . 1 . . 1 . 1 . . . . . . 1 . . . . 1 6 1 2 . 4 2 3 4 3 10 . 2 Launcher 26 | . 1 . . 1 . 3 . 3 . . . . . 2 . . . . 2 1 1 2 . . . 1 2 . 1 4 2 Special Weapon 14 | . . . . . . . . . . . . . . 1 . . . . 2 3 . . . . 2 . 3 1 2 . . Impact Weapon 1 | . . . . . . . . . . . . . . . . . . . . . . . . . . . . . 1 . . Slashing Weapon 41 | . . . . . 2 6 3 3 . 2 . . 1 2 1 . 1 . . 4 . 1 . 1 . 2 2 2 1 7 . Piercing Weapon . | . . . . . . . . . . . . . . . . . . . . . . . . . . . . . . . . Special Melee Weapon . | . . . . . . . . . . . . . . . . . . . . . . . . . . . . . . . . Unidentified Prototypes 17 | . . . . . . . 2 . . . . . . 1 . . . 1 . . . . 5 . . . 1 . 5 2 . Parts Lost 96 | . . . . . . 2 . . . . . 2 3 4 5 . 6 1 10 . . 1 . 7 . 10 1 22 10 . 12 Power 8 | . . . . . . . . . . . . . . . 2 . 1 1 . . . . . . . . . 1 2 . 1 Propulsion 30 | . . . . . . 1 . . . . . . 1 1 3 . 3 . 4 . . 1 . 2 . 4 . 6 1 . 3 Utility 26 | . . . . . . 1 . . . . . . . . . . 1 . 3 . . . . 1 . 4 . 7 5 . 4 Weapon 32 | . . . . . . . . . . . . 2 2 3 . . 1 . 3 . . . . 4 . 2 1 8 2 . 4 Highest Loss Streak 22 | . . . . . . 1 . . . . . 1 2 4 5 . 3 1 4 . . 1 . 3 . 5 1 22 7 . 12 Average Slot Usage (%) 86 | . 100 99 100 100 68 80 68 69 69 75 98 100 98 58 62 53 67 87 97 94 94 93 90 89 93 91 93 82 85 94 87 Engine 3 | . 14 14 14 14 9 9 7 7 7 7 6 6 5 . . 6 5 2 . 1 . . . . . . . . . . . Core 1 | . . . . . . . . . . . . . . . . . . 2 4 3 5 5 5 5 5 3 5 4 . . . Reactor 1 | . . . . . . . . . . . . . . 6 4 . . . . . . . . . . 1 . . 6 8 7 Treads 13 | . 20 28 28 28 18 17 9 . . . 1 . . 5 9 . 9 21 20 29 23 22 19 13 15 4 . . . . . Leg 4 | . . . . . . . . . . . . . . . . . 1 10 11 . . . . 9 15 24 31 26 . . . Wheel 3 | . 7 . . . . . 5 15 15 15 . . . 5 8 6 2 . . 2 5 5 5 1 . . . . . . . Hover 4 | . . . . . . . . . . . 36 40 39 1 . . 8 . . . . . . . . . . . 21 26 27 Device 4 | . 12 . . . . . . . . . . . . 5 6 6 1 5 6 2 3 2 . 3 5 4 3 2 15 15 18 Storage 23 | . 15 27 28 28 22 33 28 30 30 30 25 26 26 13 13 13 17 17 20 25 29 29 29 29 26 26 26 24 4 11 12 Protection 2 | . . . . . . 2 . . . . . . . . . . 3 5 . 2 1 2 4 1 4 4 5 4 9 9 6 Energy Gun 3 | . 11 3 14 12 6 . . . . . . . . . . . . 4 4 . . 20 19 5 . . . . 2 5 3 Energy Cannon 2 | . 14 18 14 14 . . . . . . . 1 7 . . . . 2 . . . . . 3 6 1 . . 4 5 3 Ballistic Gun 4 | . 1 . . . . . . . . 13 26 24 14 . . . . . 12 14 . . . 3 . 13 13 12 . . . Ballistic Cannon 4 | . . 4 . . 9 9 6 7 7 3 . . . 5 6 6 2 . 4 4 20 2 . 9 13 3 4 1 2 . 1 Slashing Weapon 2 | . . . . . 1 8 7 6 7 3 . . 3 2 6 6 10 9 . . . . . . . . . 2 2 3 3 Naked Turns 56 | . . . . . . . . . . . . . . . . . . . . . . . . . . . . 25 31 . . Heaviest Build 243 | 13 28 45 45 45 134 134 150 153 153 153 122 131 131 140 140 138 153 119 148 202 202 205 185 211 243 215 210 214 114 131 141 Greatest Support 164 | 20 40 40 40 40 40 40 88 56 56 56 132 132 132 66 44 16 74 124 142 142 96 96 98 164 75 140 140 140 104 121 138 Greatest Overweight (x) 60 | 1 1 1 1 1 3 5 34 2 2 2 1 . 8 4 8 8 9 1 4 7 7 60 6 7 3 8 1 58 6 1 2 Average Overweight (x) 1 | . . . 1 1 2 2 2 2 2 1 . . . 3 4 8 4 . 1 3 5 8 5 1 2 1 1 1 . . . Largest Inventory Capacity 42 | 8 10 16 16 16 28 28 30 30 30 30 32 32 32 32 20 20 26 26 34 42 42 42 42 42 42 42 42 42 10 10 10 Average Capacity 28 | 6 8 15 16 16 18 26 27 30 30 30 30 32 32 20 20 20 23 26 30 37 42 42 42 42 42 42 42 39 9 10 10 Most Carried 42 | 6 10 16 16 16 21 28 30 30 30 30 32 32 32 30 20 20 21 26 28 42 42 42 42 42 42 42 42 42 10 10 10 Average Carried 27 | 5 7 14 15 16 15 25 27 29 30 29 29 31 31 20 19 20 19 22 26 36 42 41 41 41 41 40 41 38 8 9 9 Final Capacity 42 | 8 10 16 16 16 22 28 30 30 30 30 32 32 32 20 20 20 26 26 34 42 42 42 42 42 42 42 42 4 10 10 10 Final Carried 42 | 4 10 16 16 16 21 28 30 30 30 30 32 31 30 20 20 20 21 26 28 42 42 42 42 42 42 42 42 4 10 10 10 Class Distribution -------------------- 18% | Bothacker-Skirmisher 15% | Botlord-Mutant 12% | Mutant 11% | Botlord-Tank 10% | Botlord-Skirmisher 10% | Hauler-Skirmisher 5% | Bothacker-Mutant 4% | Scavenger-Mutant 3% | Botlord-Gunner Dominant Class ---------------- Mutant | -10/Materials Mutant | -10/Mines Mutant | -10/Exiles Mutant | -9/Mines Skirmisher | -8/Materials Hauler-Skirmisher | -8/Garrison Bothacker-Skirmisher | -7/Factory Bothacker-Skirmisher | -7/Garrison Bothacker-Skirmisher | -7/Factory Bothacker-Skirmisher | -7/Garrison Bothacker-Skirmisher | -6/Factory Bothacker-Skirmisher | -6/Garrison Bothacker-Skirmisher | -6/Factory Bothacker-Skirmisher | -6/Lower Caves Bothacker-Skirmisher | -6/Lower Caves Bothacker-Skirmisher | -6/Data Miner Bothacker-Mutant | -5/Proximity Caves Bothacker-Mutant | -5/Factory Botlord-Skirmisher | -5/Garrison Botlord-Mutant | -5/Factory Botlord-Mutant | -5/Upper Caves Botlord-Gunner | -5/Upper Caves Botlord-Tank | -5/Zhirov Botlord-Skirmisher | -4/Proximity Caves Botlord-Mutant | -4/Factory Botlord-Tank | -4/Garrison Botlord-Tank | -4/Factory Botlord-Mutant | -4/Garrison Scavenger-Mutant | -3/Research Scavenger-Mutant | -2/Research Scavenger-Mutant | -1/Access Resources | -11 -10 -10 -10 -9 -8 -8 -7 -7 -7 -7 -6 -6 -6 -6 -6 -6 -5 -5 -5 -5 -5 -5 -5 -4 -4 -4 -4 -4 -3 -2 -1 ----------- Run | Scr Mat Min Exi Min Mat Gar Fac Gar Fac Gar Fac Gar Fac Low Low Dat Pro Fac Gar Fac Upp Upp Zhi Pro Fac Gar Fac Gar Res Res Acc Matter Collected 10795 | 249 193 153 . 3 . 348 221 217 9 492 . 601 93 187 30 . 95 135 646 1038 97 606 126 503 217 1022 57 258 2149 809 241 Remotely 719 | . . . . . . . . . . . . . . . . . . . . 246 . . . . . 473 . . . . . Salvage Created 16280 | 125 600 362 . . . 841 298 681 . 1475 . 668 275 181 276 . 481 228 709 1237 59 634 130 598 72 935 57 299 2475 1327 1257 Parts 736 | 3 38 23 . . . 58 18 32 . 67 . 30 14 14 9 . 13 6 38 63 2 27 3 23 6 27 . 17 94 57 54 Haulers Intercepted 7 | . 1 . . . . . . . . . . . . . . . . . . . . . . . . . . . 5 1 . Recyclers Shooed 9 | . . . . 1 . . 1 . . . . . . . . . . . . 2 . . . . . . . . 2 1 2 Parts Field Recycled 16 | . . . . . . . . . . . . . . . . . . . . . . . . . 8 . . 8 . . . Retrieved Matter 250 | . . . . . . . . . . . . . . . . . . . . . . . . . 172 . . 78 . . . Parts Self-Destructed 54 | . . . . . . . . . . . . . . 15 9 . 7 . . . 1 15 . 7 . . . . . . . Prevented 20 | . . . . . . . . . . . . . . 1 . . . . . . . 3 2 14 . . . . . . . Kills | -11 -10 -10 -10 -9 -8 -8 -7 -7 -7 -7 -6 -6 -6 -6 -6 -6 -5 -5 -5 -5 -5 -5 -5 -4 -4 -4 -4 -4 -3 -2 -1 ------- Run | Scr Mat Min Exi Min Mat Gar Fac Gar Fac Gar Fac Gar Fac Low Low Dat Pro Fac Gar Fac Upp Upp Zhi Pro Fac Gar Fac Gar Res Res Acc Combat Hostiles Destroyed 264 | . 9 14 . . . 24 5 22 . 33 . 13 5 8 3 . 4 1 14 10 5 14 . 9 1 17 . 9 17 15 12 Melee 32 | . . 1 . . . 7 1 2 . 2 . . 1 1 3 . 4 . . . . . . . . . . 4 6 . . Guns 54 | . 6 . . . . 3 . . . 10 . 12 2 . . . . 1 5 3 . . . 1 . 9 . 2 . . . Cannons 104 | . 3 10 . . . 13 4 17 . 21 . 1 2 . . . . . 4 2 1 4 . 5 1 5 . 2 8 . 1 AOE 58 | . . 3 . . . . . 3 . . . . . 7 . . . . 5 5 4 7 . . . 3 . 1 . 14 6 Classes Destroyed 21 | 2 6 1 . . . 3 1 3 . . . . . 1 1 . . . . . . 1 . . . 1 1 . . . . Worker 10 | . 1 . . . . . . . . . . . . . . . . . . 2 . . . . . . . . 2 2 3 Builder 5 | . 1 . . . . . . . . . . . . . . . . . . . . . . . . . . . 1 1 2 Tunneler 1 | 1 . . . . . . . . . . . . . . . . . . . . . . . . . . . . . . . Hauler 7 | . 1 . . . . . . . . . . . . . . . . . . . . . . . . . . . 5 1 . Recycler 27 | 1 1 1 . . . . 1 . . . . . . . . . . 1 . 6 . . . . . . . . 6 7 3 Mechanic 1 | . . . . . . . . . . . . . . . . . . . . . . . . . . . 1 . . . . Operator 4 | . 2 . . . . . . . . . . . 1 . . . . . . . . . . . . . . . 1 . . Drone 2 | . . . . . . 2 . . . . . . . . . . . . . . . . . . . . . . . . . Watcher 10 | . 3 . . . . . 3 . . . . . . . . . . . . 2 . . . . . . . . 2 . . Swarmer 84 | . . 9 . . . 6 . 4 . 7 . 3 2 7 . . . . 4 4 4 4 . . . 3 . 7 1 14 5 Grunt 87 | . 9 5 . . . 10 . 12 . 15 . 5 3 1 3 . . . 2 . . 6 . . . 10 . 1 2 . 3 Brawler 10 | . . . . . . . . 1 . 3 . 1 . . . . . . 2 . . . . 2 . . . . . . 1 Duelist 7 | . . . . . . . . 1 . 4 . . . . . . . . 2 . . . . . . . . . . . . Sentry 24 | . . . . . . 4 1 1 . 4 . 3 . . . . 1 1 2 . . 1 . 1 1 . . . 3 1 . Specialist 2 | . . . . . . . . 2 . . . . . . . . . . . . . . . . . . . . . . . Hunter 20 | . . . . . . 2 1 1 . . . . . . . . 2 . 2 . . . . 4 . 3 . 1 2 . 2 Programmer 26 | . . . . . . . 3 . . . . 1 . . . . 1 . . 6 1 2 . 2 . . . . 9 . 1 Behemoth 1 | . . . . . . . . . . . . . . . . . . . . . . . . . . 1 . . . . . Decomposer 1 | . . . . . . . . . . . . . . . 1 . . . . . . . . . . . . . . . . Samaritan 4 | . . . . . . . . . . . . . . . 2 . . . . . 1 1 . . . . . . . . . Tinkerer 1 | . . . . . . . . . . . . . . 1 . . . . . . . . . . . . . . . . . Savage 1 | . . . . . . . . . . . . . . . . . . . . . . 1 . . . . . . . . . Mutant 1 | . . . . . . . . . . . . . . . . . . . . . . 1 . . . . . . . . . Best Kill Streak 19 | 2 4 3 . . . 4 2 11 . 6 . 5 5 4 2 . 2 1 4 4 4 5 . 2 1 4 1 5 7 9 19 Combat Bots Only 11 | . 2 3 . . . 4 1 11 . 6 . 5 5 4 2 . 2 1 4 4 4 5 . 2 1 4 . 5 3 5 9 Max Kills in Single Turn 7 | 1 2 2 . . . 2 1 2 . 1 . 2 1 2 1 . 1 1 2 2 2 2 . 2 1 1 1 2 1 7 6 Gunslinging 1 | . . . . . . . . . . . . 1 . . . . . . . . . . . . . . . . . . . Exploded 5 | . . 2 . . . . . 2 . . . . . 2 . . . . 2 2 2 2 . . . 1 . 1 . 4 5 Melee 1 | . . 1 . . . 1 1 1 . 1 . . 1 1 1 . 1 . . . . . . . . . . 1 1 . . Uniques/NPCs Destroyed . | . . . . . . . . . . . . . . . . . . . . . . . . . . . . . . . . Combat | -11 -10 -10 -10 -9 -8 -8 -7 -7 -7 -7 -6 -6 -6 -6 -6 -6 -5 -5 -5 -5 -5 -5 -5 -4 -4 -4 -4 -4 -3 -2 -1 -------- Run | Scr Mat Min Exi Min Mat Gar Fac Gar Fac Gar Fac Gar Fac Low Low Dat Pro Fac Gar Fac Upp Upp Zhi Pro Fac Gar Fac Gar Res Res Acc Damage Taken 24176 | . 271 404 . . . 520 248 381 . 726 . 836 855 311 830 . 598 462 1454 409 130 1178 . 2166 . 2405 250 5114 2364 537 1727 Core 3383 | . 72 83 . . . 81 58 46 . 42 . 59 203 40 102 . 23 23 158 21 . 111 . 171 . 175 138 706 666 60 345 Absorbed by Shields 2153 | . . . . . . . . 18 . 8 . 78 . . . . . . . . . 120 . . . 283 . 18 777 345 506 Core Remaining (%) 62 | 100 . . . 38 . 85 . . . 79 . . . . . . 49 . . . . . . 51 . . . 6 48 95 78 Volleys Fired 585 | 9 38 28 . 1 . 10 7 4 . 21 . 33 11 6 . . . 13 40 46 12 24 4 40 20 60 12 22 70 26 28 Largest 4 | 2 2 2 . 1 . 1 1 1 . 4 . 4 3 1 . . . 4 4 4 4 4 3 4 1 4 1 4 4 4 3 Hottest 338 | 60 125 120 . 33 . 80 55 30 . 112 . 174 187 30 . . . 220 248 246 246 260 195 295 105 237 40 237 263 338 252 Shots Fired 1412 | 16 76 52 . 1 . 49 26 57 . 122 . 87 31 6 . . . 21 109 84 22 72 12 93 20 189 12 43 128 46 38 Gun 663 | 16 45 . . . . 4 7 . . 73 . 85 19 . . . . 10 75 40 . 42 12 51 . 120 . 20 29 15 . Cannon 636 | . 31 50 . . . 39 19 53 . 49 . 2 12 . . . . 11 20 22 19 22 . 42 20 65 . 16 99 20 25 Launcher 66 | . . 2 . 1 . 6 . 4 . . . . . 5 . . . . 5 4 3 8 . . . 4 . . . 11 13 Special 47 | . . . . . . . . . . . . . . 1 . . . . 9 18 . . . . . . 12 7 . . . Kinetic 836 | 9 8 11 . . . 39 19 53 . 122 . 85 19 . . . . . 60 57 13 24 . 24 6 167 . 31 79 . 10 Thermal 234 | 7 68 39 . . . 4 . . . . . 2 11 . . . . 13 4 . 6 . . 24 14 18 . 3 1 5 15 Explosive 54 | . . 2 . 1 . 6 . 4 . . . . . 5 . . . . 5 4 3 8 . . . 4 . . . 11 1 Electromagnetic 241 | . . . . . . . 7 . . . . . 1 . . . . 8 31 5 . 40 12 45 . . . 2 48 30 12 Robot Hit Streak 25 | 5 20 5 . . . 21 14 8 . 16 . 18 10 2 . . . 10 25 13 8 10 11 13 5 10 5 4 11 12 3 Robot Miss Streak 11 | 5 2 2 . . . 1 1 2 . 3 . 6 11 1 . . . 1 4 2 2 4 1 3 . 4 1 4 3 3 6 Penetration Max 1 | . . . . . . . . . . . . . . . . . . . 1 . . . . . . 1 . 1 1 . . Secondary Targets 6 | . . . . . . . . . . 1 . 4 . . . . . . 1 . . . . . . . . . . . . Max Gunslinging Chain 1 | . . . . . . . . . . 1 . 1 . . . . . . 1 . . . . . . . . . . . . Autonomous 161 | . . . . . . 39 19 53 . 50 . . . . . . . . . . . . . . . . . . . . . Shots Hit Robots 1056 | 9 53 29 . . . 61 34 49 . 97 . 68 26 9 23 . 13 11 75 58 9 44 10 56 5 108 12 26 132 25 14 Core Hits 592 | 3 27 18 . . . 29 12 23 . 72 . 56 19 12 9 . 7 6 36 31 9 32 2 17 2 43 1 11 53 33 29 Critical Hits 56 | . . . . . . 2 . 3 . 3 . . . 1 . . . . . 3 . 1 . . 1 18 . . 23 . 1 Critical Kills 22 | . . . . . . 1 . 1 . 1 . . . 1 . . . . . 2 . 1 . . 1 4 . . 9 . 1 Critical Parts Destroyed 28 | . . . . . . 1 . 2 . 2 . . . . . . . . . 1 . . . . . 9 . . 13 . . Melee Attacks 307 | . . . . . . 33 18 14 . 23 . . 17 7 26 . 14 . . 10 . . . . . 2 2 14 113 12 2 Impact 12 | . . . . . . . . . . . . . . . . . . . . . . . . . . . . . 12 . . Slashing 295 | . . . . . . 33 18 14 . 23 . . 17 7 26 . 14 . . 10 . . . . . 2 2 14 101 12 2 Piercing . | . . . . . . . . . . . . . . . . . . . . . . . . . . . . . . . . Sneak Attacks 40 | . . . . . . 3 3 1 . . . . . 1 6 . . . . 7 . . . . . . 1 . 14 3 1 Combat Hostiles 3 | . . . . . . . 2 1 . . . . . . . . . . . . . . . . . . . . . . . Follow-up Attacks 4 | . . . . . . . 1 . . . . . . . . . . . . . . . . . . . . . 3 . . Damage Inflicted 45121 | 71 790 667 . 114 . 4446 1795 3741 . 4864 . 1369 630 951 1444 . 857 171 1675 2154 742 1698 149 1516 25 2982 223 856 6223 3064 1904 Guns 9304 | 71 486 . . . . 78 60 . . 1038 . 1337 234 . . . . 118 1026 657 . 588 149 759 . 1694 . 295 453 261 . Cannons 17077 | . 299 473 . . . 2619 1122 3236 . 3305 . 32 268 . . . . 53 344 270 375 294 . 623 25 992 . 146 2082 389 130 Explosions 6941 | . . 151 . 90 . . . 165 . . . . . 615 . . . . 305 396 367 816 . 134 . 296 . . . 2022 1584 Melee 11465 | . . . . . . 1749 613 340 . 521 . . 128 336 1444 . 857 . . 826 . . . . . . 169 338 3623 392 129 Ramming 334 | . 5 43 . 24 . . . . . . . . . . . . . . . 5 . . . . . . 54 77 65 . 61 Kinetic 20041 | 26 58 87 . . . 2619 1122 3236 . 4343 . 1337 234 . . . . . 983 853 375 338 . 542 25 2069 . 405 1349 . 40 Thermal 2997 | 45 727 386 . . . 78 . . . . . 32 240 . . . . 73 172 . . . . 318 . 617 . 21 . . 288 Explosive 5474 | . . 151 . 90 . . . 165 . . . . . 615 . . . . 232 396 367 816 . . . 296 . . . 2022 324 Electromagnetic 4810 | . . . . . . . 60 . . . . . 28 . . . . 98 288 74 . 544 149 656 . . . 15 1186 650 1062 Impact 207 | . . . . . . . . . . . . . . . . . . . . . . . . . . . . . 207 . . Slashing 11258 | . . . . . . 1749 613 340 . 521 . . 128 336 1444 . 857 . . 826 . . . . . . 169 338 3416 392 129 Piercing . | . . . . . . . . . . . . . . . . . . . . . . . . . . . . . . . . Highest Corruption 15 | . . . . . . . 5 5 5 5 . 2 2 2 2 2 2 . 2 4 6 10 . 1 . . 4 4 15 4 6 Average Corruption 3 | . . . . . . . 4 5 5 5 . 2 2 2 2 2 2 . 2 2 4 6 . 1 . . 4 4 3 4 2 Corruption Purged 10 | . . . . . . . . . . . . . . . . . . . . . . 10 . . . . . . . . . Effects 284 | . . . . . . . 18 22 1 35 . . 9 8 9 1 9 . 2 28 13 54 . 3 . . . 15 45 8 4 Message Errors 79 | . . . . . . . 5 7 . 9 . . 4 2 2 . 2 . 1 11 2 13 . . . . . 2 13 5 1 Matter Fused 37 | . . . . . . . 5 7 . 6 . . . . . . . . . . 2 8 . . . . . 3 4 1 1 Heat Flow Errors 35 | . . . . . . . 1 3 . 6 . . 3 3 3 . 1 . . 1 1 3 . . . . . 4 4 2 . Energy Discharges 39 | . . . . . . . 2 1 1 1 . . 1 3 3 . 2 . . 7 2 8 . . . . . 2 5 . 1 Parts Rejected 1 | . . . . . . . . . . . . . . . . . . . . . . 1 . . . . . . . . . Data Loss (minor) 40 | . . . . . . . 2 3 . 6 . . 1 . 1 1 4 . . 4 2 9 . 3 . . . 2 2 . . Data Loss (major) 10 | . . . . . . . 1 . . 3 . . . . . . . . . . . 3 . . . . . . 3 . . Misfires 4 | . . . . . . . . . . . . . . . . . . . . . 1 3 . . . . . . . . . Misdirections 2 | . . . . . . . . . . . . . . . . . . . . . . . . . . . . . 2 . . Targeting Errors 30 | . . . . . . . 2 1 . 2 . . . . . . . . 1 4 3 4 . . . . . 2 10 . 1 Weapon Failures 7 | . . . . . . . . . . 2 . . . . . . . . . 1 . 2 . . . . . . 2 . . Overload Shots . | . . . . . . . . . . . . . . . . . . . . . . . . . . . . . . . . Overflow Damage 4278 | . . 32 . 10 . 889 472 382 . 256 . . . 57 291 . 265 . . 289 66 . . 62 . 48 93 16 884 136 30 Projectiles 1444 | . . 32 . . . 409 245 327 . 256 . . . . . . . . . 5 61 . . 44 . 21 . . 31 13 . Explosions 272 | . . . . 10 . . . . . . . . . 57 . . . . . 2 5 . . 18 . 27 . . . 123 30 Melee 2562 | . . . . . . 480 227 55 . . . . . . 291 . 265 . . 282 . . . . . . 93 16 853 . . Knockbacks 54 | . . . . . . 11 3 12 . 7 . . . . . . . . 2 2 1 1 . 4 . 3 . 1 6 . 1 Impact 2 | . . . . . . . . . . . . . . . . . . . . 1 . . . . . . . . 1 . . Kinetic 51 | . . . . . . 10 3 12 . 7 . . . . . . . . 2 1 1 1 . 4 . 3 . 1 5 . 1 Secondary 1 | . . . . . . 1 . . . . . . . . . . . . . . . . . . . . . . . . . Self-Inflicted Damage 726 | . . 39 . . . 12 . . . . . . . 97 . . . . 45 . . 135 . 60 . 138 54 . 23 45 78 Shots 18 | . . 2 . . . 1 . . . . . . . 2 . . . . 1 . . 5 . 1 . 4 . . . 1 1 Rammed 35 | . 2 9 . 5 . . . . . . . . . . . . . . . . . . . . . . . . 19 . . Targets Rammed 47 | . 2 10 . 5 . . . . . . . . . . . . . . . 1 . . . . . . . 7 22 . . Kicked 10 | . . . . . . . . . . . . . . . . . . . . . . . . . . . . 7 3 . . Crushed 2 | . . 1 . . . . . . . . . . . . . . . . . 1 . . . . . . . . . . . Highest Temperature 670 | 40 168 475 . . . 68 181 164 . 244 . 264 670 169 257 . 114 144 229 306 300 360 90 494 88 501 . 481 493 269 198 Average Temperature 114 | 17 47 180 . . . 34 101 68 . 83 . 81 243 63 111 . 69 52 87 82 112 138 41 136 32 132 . 175 135 77 112 Received Heat Transfer 3402 | . 150 96 . . . 81 . 72 . 237 . 204 258 54 354 . 48 27 108 . . 261 . 108 . 431 . 780 92 14 27 Effects 53 | . . 6 . . . . . . . 2 . . 23 . . . . . . . 2 1 . 2 . 3 . 2 12 . . Shutdowns 12 | . . 2 . . . . . . . . . . 2 . . . . . . . . 1 . . . . . 1 6 . . Energy Bleed 6 | . . 1 . . . . . . . . . . 3 . . . . . . . . . . . . . . . 2 . . Interference 13 | . . 3 . . . . . . . 2 . . 3 . . . . . . . 2 . . . . . . 1 2 . . Matter Decay 3 | . . . . . . . . . . . . . . . . . . . . . . . . 1 . 2 . . . . . Short Circuit 5 | . . . . . . . . . . . . . 2 . . . . . . . . . . 1 . 1 . . 1 . . Damage (minor) 4 | . . . . . . . . . . . . . 4 . . . . . . . . . . . . . . . . . . Damage (major) 9 | . . . . . . . . . . . . . 8 . . . . . . . . . . . . . . . 1 . . Damage (core) 1 | . . . . . . . . . . . . . 1 . . . . . . . . . . . . . . . . . . Siege Activations . | . . . . . . . . . . . . . . . . . . . . . . . . . . . . . . . . Robots Corrupted 18 | . . . . . . . . . . . . . . . . . . 1 . . . 3 . 3 . . . . 4 2 5 Combat Hostiles 15 | . . . . . . . . . . . . . . . . . . . . . . 3 . 3 . . . . 3 1 5 Parts Fried 46 | . . . . . . 1 . . . . . . . . . . . 4 . 1 . 8 1 4 . . . . 15 8 4 Impact Corruptions 6 | . . 1 . . . 1 . . . . . . . . . . . . . . . . . . . . . . 4 . . Robots Melted . | . . . . . . . . . . . . . . . . . . . . . . . . . . . . . . . . Combat Hostiles . | . . . . . . . . . . . . . . . . . . . . . . . . . . . . . . . . Parts Melted 7 | . 1 2 . . . . . . . . . . 1 . . . . 2 . . . . . 1 . . . . . . . Heat Transferred 4503 | 100 1680 814 . . . 175 . . . . . 37 296 . . . . 111 198 . . . . 350 . 518 . 50 . . 174 Parts Sabotaged . | . . . . . . . . . . . . . . . . . . . . . . . . . . . . . . . . Parts Stolen . | . . . . . . . . . . . . . . . . . . . . . . . . . . . . . . . . Parts Stripped . | . . . . . . . . . . . . . . . . . . . . . . . . . . . . . . . . Power Chain Reactions 6 | . . . . . . . . . . . . . . . . . . . 1 . . . . 1 . . . . . . 4 Missiles Intercepted . | . . . . . . . . . . . . . . . . . . . . . . . . . . . . . . . . Alert | -11 -10 -10 -10 -9 -8 -8 -7 -7 -7 -7 -6 -6 -6 -6 -6 -6 -5 -5 -5 -5 -5 -5 -5 -4 -4 -4 -4 -4 -3 -2 -1 ------- Run | Scr Mat Min Exi Min Mat Gar Fac Gar Fac Gar Fac Gar Fac Low Low Dat Pro Fac Gar Fac Upp Upp Zhi Pro Fac Gar Fac Gar Res Res Acc Peak Influence 1154 | 10 235 177 . 81 3 1154 605 913 478 1065 604 717 401 . . . . 37 445 257 . . . . 43 295 158 219 400 614 694 Initial 605 | . 6 7 . . . 1 605 84 478 334 558 422 375 . . . . 4 25 233 . . . . . 30 154 9 5 225 270 Average 315 | 6 129 75 . 44 . 799 361 632 478 775 587 575 344 . . . . 16 257 86 . . . . 8 174 51 75 156 378 487 Maximum Alert Level 4 | . 1 . . . . 4 2 3 2 3 2 3 2 . . . . . 2 1 . . . . . 1 . 1 2 2 2 Low Security (%) 48 | 100 83 100 . 100 100 6 27 12 . . . . 3 . . . . 100 45 82 . . . . 100 48 100 99 55 19 . Level 1 20 | . 16 . . . . 15 20 6 . 3 . . 93 . . . . . 13 17 . . . . . 51 . . 44 39 33 Level 2 17 | . . . . . . 14 52 41 100 37 100 81 3 . . . . . 41 . . . . . . . . . . 41 66 Level 3 8 | . . . . . . 24 . 39 . 58 . 18 . . . . . . . . . . . . . . . . . . . Level 4 4 | . . . . . . 39 . . . . . . . . . . . . . . . . . . . . . . . . . Level 5 . | . . . . . . . . . . . . . . . . . . . . . . . . . . . . . . . . High Security . | . . . . . . . . . . . . . . . . . . . . . . . . . . . . . . . . Max Security . | . . . . . . . . . . . . . . . . . . . . . . . . . . . . . . . . Squads Dispatched 23 | . 2 . . . . . 2 . . . . . . . . . . . . 4 . . . . 1 . 1 . 6 6 1 Investigation 1 | . . . . . . . . . . . . . . . . . . . . . . . . . . . . . 1 . . Extermination 12 | . . . . . . . 2 . . . . . . . . . . . . 4 . . . . 1 . . . 4 1 . Reinforcement 6 | . 2 . . . . . . . . . . . . . . . . . . . . . . . . . 1 . . 2 1 Assault 3 | . . . . . . . . . . . . . . . . . . . . . . . . . . . . . 1 2 . Garrison 1 | . . . . . . . . . . . . . . . . . . . . . . . . . . . . . . 1 . Intercept . | . . . . . . . . . . . . . . . . . . . . . . . . . . . . . . . . Construction Impeded 2 | . . . . . . . . . . . . . . . . . . . . . . . . . . . . . . 1 1 Haulers Reinforced . | . . . . . . . . . . . . . . . . . . . . . . . . . . . . . . . . Alert ID Control Effect 3 | . . . . . . . . . . . . . . . . . . . 2 . . . . . . . . 1 . . . Stealth | -11 -10 -10 -10 -9 -8 -8 -7 -7 -7 -7 -6 -6 -6 -6 -6 -6 -5 -5 -5 -5 -5 -5 -5 -4 -4 -4 -4 -4 -3 -2 -1 --------- Run | Scr Mat Min Exi Min Mat Gar Fac Gar Fac Gar Fac Gar Fac Low Low Dat Pro Fac Gar Fac Upp Upp Zhi Pro Fac Gar Fac Gar Res Res Acc Distress Signals 8 | . 2 . . . . . . . . . . . . . . . . . . 1 . . . . . . 1 . 2 1 1 Communications Jammed . | . . . . . . . . . . . . . . . . . . . . . . . . . . . . . . . . Distress Signals . | . . . . . . . . . . . . . . . . . . . . . . . . . . . . . . . . Times Spotted 362 | . 21 13 . 4 . 20 6 23 . 34 . 14 7 8 4 . 5 1 20 21 8 14 . 11 1 16 8 24 38 27 14 Peak Tracking Total 15 | . 3 3 . 10 . 5 1 6 . 6 . 6 5 4 4 . 2 1 7 6 4 5 . 3 1 4 4 15 5 7 5 Tactical Retreats 30 | . 2 1 . 1 . 1 . 3 . 3 . 3 . . 1 . 1 . 2 1 . . . 2 . 1 . 1 3 3 1 Traps | -11 -10 -10 -10 -9 -8 -8 -7 -7 -7 -7 -6 -6 -6 -6 -6 -6 -5 -5 -5 -5 -5 -5 -5 -4 -4 -4 -4 -4 -3 -2 -1 ------- Run | Scr Mat Min Exi Min Mat Gar Fac Gar Fac Gar Fac Gar Fac Low Low Dat Pro Fac Gar Fac Upp Upp Zhi Pro Fac Gar Fac Gar Res Res Acc Traps Triggered 51 | . . . . . . 10 . 9 . 11 . 2 . . . . . . 5 . . . . . . 7 . 3 3 1 . Indirectly . | . . . . . . . . . . . . . . . . . . . . . . . . . . . . . . . . Trap Hack Attempts . | . . . . . . . . . . . . . . . . . . . . . . . . . . . . . . . . Triggered . | . . . . . . . . . . . . . . . . . . . . . . . . . . . . . . . . Disarmed . | . . . . . . . . . . . . . . . . . . . . . . . . . . . . . . . . Reprogrammed . | . . . . . . . . . . . . . . . . . . . . . . . . . . . . . . . . Reused . | . . . . . . . . . . . . . . . . . . . . . . . . . . . . . . . . Traps Extracted . | . . . . . . . . . . . . . . . . . . . . . . . . . . . . . . . . Installed . | . . . . . . . . . . . . . . . . . . . . . . . . . . . . . . . . Triggered 4 | . . . . . . . . . . . . . . . . . . . 4 . . . . . . . . . . . . Exploded 2 | . . . 2 . . . . . . . . . . . . . . . . . . . . . . . . . . . . Machines | -11 -10 -10 -10 -9 -8 -8 -7 -7 -7 -7 -6 -6 -6 -6 -6 -6 -5 -5 -5 -5 -5 -5 -5 -4 -4 -4 -4 -4 -3 -2 -1 ---------- Run | Scr Mat Min Exi Min Mat Gar Fac Gar Fac Gar Fac Gar Fac Low Low Dat Pro Fac Gar Fac Upp Upp Zhi Pro Fac Gar Fac Gar Res Res Acc Machines Disabled 37 | . . . . . . 6 1 6 . 5 . . 2 . . . . . 6 . . 1 . . . 1 1 2 2 2 2 Max in Single Turn 2 | . . . . . . 2 1 1 . 1 . . 1 . . . . . 2 . . 1 . . . 1 1 1 1 1 1 Garrison Access 2 | . . . . . . . . . . . . . . . . . . . . . . . . . . . . . 1 1 . Garrison Relay 14 | . . . . . . 3 . 4 . 3 . . . . . . . . 2 . . . . . . 1 . 1 . . . Phase Generator 1 | . . . . . . . . . . . . . . . . . . . 1 . . . . . . . . . . . . Energy Cycler 1 | . . . . . . . . . . . . . . . . . . . . . . . . . . . . . . . 1 Machines Sabotaged . | . . . . . . . . . . . . . . . . . . . . . . . . . . . . . . . . Garrisons Compromised . | . . . . . . . . . . . . . . . . . . . . . . . . . . . . . . . . Overloaded Fab Kills . | . . . . . . . . . . . . . . . . . . . . . . . . . . . . . . . . Fab Network Shutdowns . | . . . . . . . . . . . . . . . . . . . . . . . . . . . . . . . . Hacking | -11 -10 -10 -10 -9 -8 -8 -7 -7 -7 -7 -6 -6 -6 -6 -6 -6 -5 -5 -5 -5 -5 -5 -5 -4 -4 -4 -4 -4 -3 -2 -1 --------- Run | Scr Mat Min Exi Min Mat Gar Fac Gar Fac Gar Fac Gar Fac Low Low Dat Pro Fac Gar Fac Upp Upp Zhi Pro Fac Gar Fac Gar Res Res Acc Machines Accessed 82 | . 7 . 1 . 2 . 12 . 2 . 4 . 1 . . 4 . 1 . 9 . 1 9 . 2 . 2 . 15 10 . Terminals 40 | . 5 . . . 1 . 9 . 1 . 1 . 1 . . . . . . 6 . . . . 1 . . . 8 7 . Fabricators 6 | . . . . . . . . . . . . . . . . . . . . 2 . . . . . . . . 3 1 . Repair Stations 4 | . . . . . . . . . . . 2 . . . . . . . . . . . . . . . 1 . . 1 . Recycling Units 6 | . 2 . . . . . 2 . . . . . . . . . . . . 1 . . . . . . . . 1 . . Scanalyzers 2 | . . . . . . . . . . . . . . . . . . . . . . . . . . . . . 2 . . Garrison Access 9 | . . . . . 1 . 1 . 1 . 1 . . . . . . 1 . . . . . . 1 . 1 . 1 1 . Total Hacks 228 | . 20 . 1 . 6 . 30 . 3 . 9 . 5 . . 26 . 1 . 21 . 1 48 . 4 . 2 . 31 20 . Successful 144 | . 12 . 1 . 2 . 16 . 1 . 5 . . . . 26 . 1 . 10 . 1 48 . 1 . 1 . 10 9 . Failed 83 | . 7 . . . 4 . 14 . 2 . 4 . 5 . . . . . . 11 . . . . 3 . 1 . 21 11 . Catastrophic 19 | . . . . . 2 . 6 . . . 1 . 1 . . . . . . 2 . . . . . . . . 4 3 . Database Lockouts 1 | . 1 . . . . . . . . . . . . . . . . . . . . . . . . . . . . . . Manual 69 | . 15 . 1 . 4 . 13 . 1 . 3 . 5 . . . . . . 6 . . . . 3 . . . 11 7 . Terminals 104 | . 18 . . . 5 . 24 . 2 . 3 . 5 . . . . . . 12 . . . . 3 . . . 17 15 . Fabricators 15 | . . . . . . . . . . . . . . . . . . . . 7 . . . . . . . . 6 2 . Repair Stations 7 | . . . . . . . . . . . 5 . . . . . . . . . . . . . . . 1 . . 1 . Recycling Units 10 | . 2 . . . . . 4 . . . . . . . . . . . . 2 . . . . . . . . 2 . . Scanalyzers 5 | . . . . . . . . . . . . . . . . . . . . . . . . . . . . . 5 . . Garrison Access 11 | . . . . . 1 . 2 . 1 . 1 . . . . . . 1 . . . . . . 1 . 1 . 1 2 . Terminal Hacks 106 | . 6 . 1 . . . 11 . . . 1 . . . . 26 . . . 3 . 1 48 . . . . . 4 5 . Record 47 | . . . . . . . . . . . . . . . . 11 . . . . . . 36 . . . . . . . . Part Schematic 11 | . . . . . . . . . . . . . . . . 6 . . . . . . 4 . . . . . 1 . . Robot Schematic 6 | . . . . . . . . . . . . . . . . 6 . . . . . . . . . . . . . . . Robot Analysis 5 | . 1 . . . . . . . . . . . . . . . . . . . . . 4 . . . . . . . . Prototype ID Bank 8 | . . . . . . . 1 . . . . . . . . 3 . . . . . . 4 . . . . . . . . Open Door 1 | . . . . . . . . . . . . . . . . . . . . . . 1 . . . . . . . . . Level Access Points 1 | . . . . . . . 1 . . . . . . . . . . . . . . . . . . . . . . . . Branch Access Points 2 | . . . . . . . . . . . . . . . . . . . . 1 . . . . . . . . . 1 . Terminal Index 6 | . 1 . . . . . 1 . . . . . . . . . . . . 1 . . . . . . . . 2 1 . Alert Level 4 | . . . . . . . 3 . . . . . . . . . . . . . . . . . . . . . 1 . . Unreport Threat 5 | . . . . . . . 2 . . . . . . . . . . . . 1 . . . . . . . . . 2 . Locate Traps 5 | . 2 . . . . . 2 . . . . . . . . . . . . . . . . . . . . . . 1 . Hauler Manifests 3 | . 1 . . . . . 1 . . . 1 . . . . . . . . . . . . . . . . . . . . Zone Layout 1 | . 1 . . . . . . . . . . . . . . . . . . . . . . . . . . . . . . EX-Prototype ID Bank 1 | . . . 1 . . . . . . . . . . . . . . . . . . . . . . . . . . . . Fabricator Hacks 8 | . . . . . . . . . . . . . . . . . . . . 5 . . . . . . . . 2 1 . Load Schematic 4 | . . . . . . . . . . . . . . . . . . . . 2 . . . . . . . . 1 1 . Build 4 | . . . . . . . . . . . . . . . . . . . . 3 . . . . . . . . 1 . . Repair Station Hacks 2 | . . . . . . . . . . . 2 . . . . . . . . . . . . . . . . . . . . Scan Component 2 | . . . . . . . . . . . 2 . . . . . . . . . . . . . . . . . . . . Recycling Unit Hacks 4 | . 1 . . . . . 2 . . . . . . . . . . . . 1 . . . . . . . . . . . Report Inventory 3 | . 1 . . . . . 1 . . . . . . . . . . . . 1 . . . . . . . . . . . Retrieve Components 1 | . . . . . . . 1 . . . . . . . . . . . . . . . . . . . . . . . . Scanalyzer 2 | . . . . . . . . . . . . . . . . . . . . . . . . . . . . . 2 . . Insert Component 2 | . . . . . . . . . . . . . . . . . . . . . . . . . . . . . 2 . . Garrison Access Hacks 11 | . . . . . 1 . 2 . 1 . 1 . . . . . . 1 . . . . . . 1 . 1 . 1 2 . Unlock Access 7 | . . . . . 1 . 1 . 1 . 1 . . . . . . 1 . . . . . . 1 . 1 . . . . Seal Access 1 | . . . . . . . . . . . . . . . . . . . . . . . . . . . . . . 1 . Coupler Status 3 | . . . . . . . 1 . . . . . . . . . . . . . . . . . . . . . 1 1 . Unauthorized Hacks 11 | . 5 . . . 1 . 1 . . . 1 . . . . . . . . 1 . . . . . . . . 1 1 . Terminals 10 | . 4 . . . 1 . 1 . . . 1 . . . . . . . . 1 . . . . . . . . 1 1 . Track 2 | . 2 . . . . . . . . . . . . . . . . . . . . . . . . . . . . . . Assimilate 2 | . 1 . . . . . . . . . . . . . . . . . . 1 . . . . . . . . . . . Botnet 5 | . . . . . 1 . 1 . . . 1 . . . . . . . . . . . . . . . . . 1 1 . Operators 1 | . 1 . . . . . . . . . . . . . . . . . . . . . . . . . . . . . . Fabricators . | . . . . . . . . . . . . . . . . . . . . . . . . . . . . . . . . Repair Stations . | . . . . . . . . . . . . . . . . . . . . . . . . . . . . . . . . Recycling Units 1 | . 1 . . . . . . . . . . . . . . . . . . . . . . . . . . . . . . Mask 1 | . 1 . . . . . . . . . . . . . . . . . . . . . . . . . . . . . . Scanalyzers . | . . . . . . . . . . . . . . . . . . . . . . . . . . . . . . . . Garrison Access . | . . . . . . . . . . . . . . . . . . . . . . . . . . . . . . . . Data Cores Recovered . | . . . . . . . . . . . . . . . . . . . . . . . . . . . . . . . . Used . | . . . . . . . . . . . . . . . . . . . . . . . . . . . . . . . . Hacking Detections 62 | . 5 . . . 1 . 11 . 2 . 4 . 1 . . . . 1 . 9 . . . . 2 . 1 . 15 10 . Full Trace Events 1 | . . . . . . . . . . . . . . . . . . . . . . . . . . . . . 1 . . Feedback Events . | . . . . . . . . . . . . . . . . . . . . . . . . . . . . . . . . Feedback Blocked . | . . . . . . . . . . . . . . . . . . . . . . . . . . . . . . . . Robot Schematics Acquired 6 | . . . . . . . . . . . . . . . . 6 . . . . . . . . . . . . . . . Robots Built . | . . . . . . . . . . . . . . . . . . . . . . . . . . . . . . . . Matter . | . . . . . . . . . . . . . . . . . . . . . . . . . . . . . . . . Time . | . . . . . . . . . . . . . . . . . . . . . . . . . . . . . . . . Total Robot Build Rating . | . . . . . . . . . . . . . . . . . . . . . . . . . . . . . . . . Part Schematics Acquired 11 | . . . . . . . . . . . . . . . . 6 . . . . . . 4 . . . . . 1 . . Parts Built 5 | . . . . . . . . . . . . . . . . . . . . 4 . . . . . . . . 1 . . Matter 1038 | . . . . . . . . . . . . . . . . . . . . 826 . . . . . . . . 212 . . Time 421 | . . . . . . . . . . . . . . . . . . . . 368 . . . . . . . . 53 . . Total Part Build Rating 32 | . . . . . . . . . . . . . . . . . . . . 26 . . . . . . . . 6 . . Parts Repaired . | . . . . . . . . . . . . . . . . . . . . . . . . . . . . . . . . Time . | . . . . . . . . . . . . . . . . . . . . . . . . . . . . . . . . Parts Recycled . | . . . . . . . . . . . . . . . . . . . . . . . . . . . . . . . . Recycled Matter . | . . . . . . . . . . . . . . . . . . . . . . . . . . . . . . . . Retrieved Matter . | . . . . . . . . . . . . . . . . . . . . . . . . . . . . . . . . Retrieved Components 3 | . . . . . . . 3 . . . . . . . . . . . . . . . . . . . . . . . . Parts Scanalyzed 2 | . . . . . . . . . . . . . . . . . . . . . . . . . . . . . 2 . . Part Schematics Acquired . | . . . . . . . . . . . . . . . . . . . . . . . . . . . . . . . . Parts Damaged . | . . . . . . . . . . . . . . . . . . . . . . . . . . . . . . . . Bothacking | -11 -10 -10 -10 -9 -8 -8 -7 -7 -7 -7 -6 -6 -6 -6 -6 -6 -5 -5 -5 -5 -5 -5 -5 -4 -4 -4 -4 -4 -3 -2 -1 ------------ Run | Scr Mat Min Exi Min Mat Gar Fac Gar Fac Gar Fac Gar Fac Low Low Dat Pro Fac Gar Fac Upp Upp Zhi Pro Fac Gar Fac Gar Res Res Acc Used RIF Installer 7 | . . . . . . 1 . 1 . 1 . 1 . . . . . . 1 . . . . . . 1 . 1 . . . Coupler Efficiency 1 | . . . . . . . . . . . . . . . . . . . . . . . . . . 1 . . . . . Threat Obfuscator 1 | . . . . . . . . 1 . . . . . . . . . . . . . . . . . . . . . . . Zone Cloak 1 | . . . . . . . . . . 1 . . . . . . . . . . . . . . . . . . . . . Patrol Navigation 1 | . . . . . . . . . . . . 1 . . . . . . . . . . . . . . . . . . . Alert ID Control 1 | . . . . . . . . . . . . . . . . . . . 1 . . . . . . . . . . . . Autooverride 1 | . . . . . . . . . . . . . . . . . . . . . . . . . . . . 1 . . . Robots Hacked 20 | . . . . . . . . . . . . . . 1 . . . . 4 8 . . . . . . 3 4 . . . Non-combat 12 | . . . . . . . . . . . . . . 1 . . . . . 8 . . . . . . 3 . . . . Combat 8 | . . . . . . . . . . . . . . . . . . . 4 . . . . . . . . 4 . . . Robot Hacks Applied 28 | . . . . . . . . . . . . . . 1 . . . . 4 12 . . . . . . 7 4 . . . parse_system 1 | . . . . . . . . . . . . . . 1 . . . . . . . . . . . . . . . . . generate_anomaly 1 | . . . . . . . . . . . . . . . . . . . . . . . . . . . 1 . . . . generate_echo 1 | . . . . . . . . . . . . . . . . . . . . 1 . . . . . . . . . . . find_fabricator 1 | . . . . . . . . . . . . . . . . . . . . 1 . . . . . . . . . . . drop_inventory 1 | . . . . . . . . . . . . . . . . . . . . 1 . . . . . . . . . . . ignore_parts 2 | . . . . . . . . . . . . . . . . . . . . 2 . . . . . . . . . . . purge_threat 1 | . . . . . . . . . . . . . . . . . . . . . . . . . . . 1 . . . . find_terminals 1 | . . . . . . . . . . . . . . . . . . . . . . . . . . . 1 . . . . reprogram_traps 1 | . . . . . . . . . . . . . . . . . . . . . . . . . . . 1 . . . . block_reporting 2 | . . . . . . . . . . . . . . . . . . . . 1 . . . . . . 1 . . . . summon_haulers 2 | . . . . . . . . . . . . . . . . . . . . 1 . . . . . . 1 . . . . map_route 2 | . . . . . . . . . . . . . . . . . . . . 2 . . . . . . . . . . . mark_security 2 | . . . . . . . . . . . . . . . . . . . . 2 . . . . . . . . . . . link_fov 1 | . . . . . . . . . . . . . . . . . . . . 1 . . . . . . . . . . . overload_power 2 | . . . . . . . . . . . . . . . . . . . 1 . . . . . . . . 1 . . . amplify_resonance 5 | . . . . . . . . . . . . . . . . . . . 3 . . . . . . . . 2 . . . streamctrl_low 1 | . . . . . . . . . . . . . . . . . . . . . . . . . . . 1 . . . . formatsys_high 1 | . . . . . . . . . . . . . . . . . . . . . . . . . . . . 1 . . . Relay Couplers Released 57 | . . . . . . 14 . 14 . 12 . . . . . . . . 9 . . . . . . 3 . 4 1 . . Machine Destruction 57 | . . . . . . 14 . 14 . 12 . . . . . . . . 9 . . . . . . 3 . 4 1 . . Attached 8 | . . . . . . . . . . . . . . . . . . . 3 2 . . . . . . 1 2 . . . Robots Rewired 4 | . . . . . . 2 . . . . . . . . . . . . 1 . . . . . 1 . . . . . . Allies Hacked . | . . . . . . . . . . . . . . . . . . . . . . . . . . . . . . . . Hacks Repelled . | . . . . . . . . . . . . . . . . . . . . . . . . . . . . . . . . Allies | -11 -10 -10 -10 -9 -8 -8 -7 -7 -7 -7 -6 -6 -6 -6 -6 -6 -5 -5 -5 -5 -5 -5 -5 -4 -4 -4 -4 -4 -3 -2 -1 -------- Run | Scr Mat Min Exi Min Mat Gar Fac Gar Fac Gar Fac Gar Fac Low Low Dat Pro Fac Gar Fac Upp Upp Zhi Pro Fac Gar Fac Gar Res Res Acc Total Allies 10 | . 1 3 . . . . . . . . . . . . . . 1 . 1 1 . . . . 1 . 1 1 . . . Largest Group 3 | . 1 3 3 3 . . . . . . . . . . . . 1 . 1 1 . . . . 1 1 1 1 . . . Highest-Rated Group 94 | . 10 40 40 40 . . . . . . . . . . . . 94 . 29 26 . . . . 49 43 20 47 . . . Highest-Rated Ally 94 | . 10 16 16 16 . . . . . . . . . . . . 94 . 29 26 . . . . 49 43 20 47 . . . Total Orders 4 | . 2 . . . . . . . . . . . . . . . . . . 1 . . . . . . 1 . . . . STAY 1 | . 1 . . . . . . . . . . . . . . . . . . . . . . . . . . . . . . FOLLOW 1 | . 1 . . . . . . . . . . . . . . . . . . . . . . . . . . . . . . AID 1 | . . . . . . . . . . . . . . . . . . . . . . . . . . . 1 . . . . RETURN 1 | . . . . . . . . . . . . . . . . . . . . 1 . . . . . . . . . . . Ally Attacks 46 | . . . . 22 . . . . . . . . . . . . 12 . 2 . . . . . 1 5 . 4 . . . Total Damage 864 | . . . . 227 . . . . . . . . . . . . 322 . 38 . . . . . 50 110 . 117 . . . Kills 8 | . . . . 4 . . . . . . . . . . . . . . 2 . . . . . 1 . . 1 . . . Allies Corrupted . | . . . . . . . . . . . . . . . . . . . . . . . . . . . . . . . . Allies Melted . | . . . . . . . . . . . . . . . . . . . . . . . . . . . . . . . . Intel | -11 -10 -10 -10 -9 -8 -8 -7 -7 -7 -7 -6 -6 -6 -6 -6 -6 -5 -5 -5 -5 -5 -5 -5 -4 -4 -4 -4 -4 -3 -2 -1 ------- Run | Scr Mat Min Exi Min Mat Gar Fac Gar Fac Gar Fac Gar Fac Low Low Dat Pro Fac Gar Fac Upp Upp Zhi Pro Fac Gar Fac Gar Res Res Acc Robot Analysis Total 5 | . 1 . . . . . . . . . . . . . . . . . . . . . 4 . . . . . . . . Derelict Logs Recovered 12 | . . 2 . 2 . . . . . . . . . 1 . . 1 . . . 2 2 . 2 . . . . . . . Drone Launches 2 | . . . . . . . . . . . . . . . . . . . . 2 . . . . . . . . . . . Drone Recoveries 2 | . . . . . . . . . . . . . . . . . . . . 2 . . . . . . . . . . . Exploration | -11 -10 -10 -10 -9 -8 -8 -7 -7 -7 -7 -6 -6 -6 -6 -6 -6 -5 -5 -5 -5 -5 -5 -5 -4 -4 -4 -4 -4 -3 -2 -1 ------------- Run | Scr Mat Min Exi Min Mat Gar Fac Gar Fac Gar Fac Gar Fac Low Low Dat Pro Fac Gar Fac Upp Upp Zhi Pro Fac Gar Fac Gar Res Res Acc Turns Passed 30695 | 79 805 1398 401 612 153 2580 1461 1075 87 1393 204 371 552 707 1009 162 877 336 1695 2282 557 2153 416 2133 744 1967 533 552 2308 804 289 Spaces Moved 17013 | 47 497 676 222 334 64 1030 794 725 73 874 244 375 299 405 615 91 417 146 782 954 283 633 228 914 317 748 211 256 2113 1275 371 Core 173 | . . . . . . . 4 . . . . . . . . . . . . . . 31 . . . . . 50 88 . . Treads 4760 | . 154 676 222 334 64 1030 287 . . . . . . . . . 251 146 760 479 59 21 2 242 . 33 . . . . . Legs 2234 | 16 . . . . . . . . . . . . . . . . . . 22 . . . . 644 317 715 211 206 103 . . Wheels 5381 | 31 343 . . . . . 500 725 73 874 . . . 389 615 91 163 . . 475 224 581 226 28 . . . . 43 . . Hover 4465 | . . . . . . . 3 . . . 244 375 299 16 . . 3 . . . . . . . . . . . 1879 1275 371 Flight . | . . . . . . . . . . . . . . . . . . . . . . . . . . . . . . . . Fastest Speed 41 | 90 90 160 180 180 200 200 68 120 120 110 60 60 56 140 130 180 176 162 150 160 160 160 160 160 180 150 150 50 50 45 41 Average Speed 139 | 101 111 178 180 180 201 215 166 120 120 115 64 60 73 140 145 180 189 179 183 169 174 304 160 180 203 161 150 141 60 45 46 Slowest Speed 3050 | 120 160 180 180 180 220 260 1750 120 120 120 158 60 460 142 180 180 256 183 250 202 202 3050 187 220 210 320 150 2950 350 98 150 Overloaded Moves . | . . . . . . . . . . . . . . . . . . . . . . . . . . . . . . . . Propulsion Burnouts . | . . . . . . . . . . . . . . . . . . . . . . . . . . . . . . . . Robots Hopped . | . . . . . . . . . . . . . . . . . . . . . . . . . . . . . . . . Cave-ins Triggered 1 | . . . . . . . . . . . . . . . . . . 1 . . . . . . . . . . . . . Teleports 1 | . . . . . . . . . . . . . . . . . . . . . . . . . . . 1 . . . . Exploration Rate (%) 47 | 4 71 98 63 61 6 76 22 90 3 89 8 54 9 59 79 71 72 2 95 21 49 72 62 87 7 81 6 42 33 31 11 Regions Visited 31 Branch Regions 11 Pre-discovered Areas 9 | . . . . 1 . . . . . . . . . . . 1 1 . . . 1 1 3 1 . . . . . . . Known Exits Taken 13 | . . . . . 1 . 1 . 1 . 1 . . 1 1 1 1 1 . 1 . . . 1 1 . 1 . . . . Unknown Exits Taken 11 | 1 1 1 1 1 . . . . . . . . 1 . . . . . . . 1 1 1 . . . . . 1 1 . Scrap Searched 8 | . . 2 . . . . . . . . . . . 1 3 . . . . . . 1 . 1 . . . . . . . Spaces Dug 205 | . . . . 7 . 12 3 . . 1 . . 11 . . . . 7 . 3 13 . . 16 15 . . 3 39 70 5 Terrain Destroyed 784 | . . 12 . 7 . 36 8 36 . 10 . 3 12 48 . . . 7 120 50 33 56 . 37 15 30 . 9 54 176 25 Melee 70 | . . . . . . 3 3 . . 1 . . 11 . . . . . . 1 . . . . . . . 2 39 9 1 Projectile 182 | . . . . . . 5 5 14 . 9 . 3 1 . . . . 7 10 16 10 16 . 26 15 10 . 7 15 5 8 AOE 532 | . . 12 . 7 . 28 . 22 . . . . . 48 . . . . 110 33 23 40 . 11 . 20 . . . 162 16 Terrain Rammed 3 | . . . . . . . . . . . . . . . . . . . . . . . . . . . 2 . . . 1 Walls Destroyed . | . . . . . . . . . . . . . . . . . . . . . . . . . . . . . . . . Machines Disabled 1 | . . . . . . . . . . . . . . . . . . . . . . . . . . . 1 . . . . Actions | -11 -10 -10 -10 -9 -8 -8 -7 -7 -7 -7 -6 -6 -6 -6 -6 -6 -5 -5 -5 -5 -5 -5 -5 -4 -4 -4 -4 -4 -3 -2 -1 --------- Run | Scr Mat Min Exi Min Mat Gar Fac Gar Fac Gar Fac Gar Fac Low Low Dat Pro Fac Gar Fac Upp Upp Zhi Pro Fac Gar Fac Gar Res Res Acc Total 22483 | 64 672 805 225 340 91 1333 906 902 72 1179 293 460 580 532 688 90 478 201 965 1553 328 806 271 1317 396 1379 421 390 2866 1432 448 Wait 3098 | . 82 73 . . . 182 7 68 . 172 . 27 247 90 37 . 33 14 79 441 29 121 14 314 20 467 158 57 315 29 22 Move 16975 | 46 496 675 221 333 63 1028 793 723 72 871 243 373 298 404 614 90 416 144 780 953 282 632 227 913 316 747 211 255 2112 1274 370 Hop . | . . . . . . . . . . . . . . . . . . . . . . . . . . . . . . . . Pick Up 277 | 1 17 9 1 . 13 23 30 3 . 11 22 4 1 2 3 . 3 8 9 30 . 1 1 4 5 13 6 2 45 7 3 Fast Attach 225 | 2 2 1 . . 2 4 11 4 . . 5 3 1 2 3 . 9 7 17 10 . 7 10 14 4 19 3 . 62 18 5 Attach 120 | 2 3 2 . . 4 4 8 . . 3 7 2 2 5 1 . 2 5 2 9 . 2 . 7 5 7 5 12 13 6 2 Detach 50 | . 2 . . . 2 1 5 . . . 1 1 . 1 1 . . 2 . 5 . 1 3 4 4 2 3 . 11 1 . Swap 231 | . 15 3 . 1 1 12 2 8 . 8 3 2 2 4 . . . 2 12 18 5 12 1 12 7 12 9 5 35 32 8 Drop 352 | 4 15 4 3 . 6 18 26 7 . 14 12 5 1 11 3 . 1 5 15 30 . 6 11 9 7 23 10 1 71 27 7 Fire 585 | 9 38 28 . 1 . 10 7 4 . 21 . 33 11 6 . . . 13 40 46 12 24 4 40 20 60 12 22 70 26 28 Melee 294 | . . . . . . 33 17 14 . 23 . . 17 7 26 . 14 . . 10 . . . . . 2 2 14 101 12 2 Ram 15 | . . . . . . . . . . . . . . . . . . . . . . . . . . . 2 . 12 . 1 Kick 17 | . . . . . . . . . . . . . . . . . . . . . . . . . . . . 7 10 . . Crush 18 | . 2 10 . 5 . . . . . . . . . . . . . . . 1 . . . . . . . . . . . Escape Stasis 206 | . . . . . . 16 . 71 . 56 . 10 . . . . . 1 10 . . . . . . 27 . 15 . . . Rewire 20 | . . . . . . 2 . . . . . . . . . . . . 1 . . . . . 8 . . . 9 . . Trap . | . . . . . . . . . . . . . . . . . . . . . . . . . . . . . . . . Miscellaneous . | . . . . . . . . . . . . . . . . . . . . . . . . . . . . . . . . Route ------- -11/Scrapyard -10/Materials (discovered 3 exits: [*Mat x2] / [*Min]) -10/Mines (discovered 3 exits: [*Mat x2] / *Exi) -10/Exiles -9/Mines -8/Materials -8/Garrison (discovered 3 exits: *Fac x3) -7/Factory (discovered 5 exits: Fac x4 / Gar) -7/Garrison (discovered 3 exits: *Fac x3) -7/Factory -7/Garrison (discovered 3 exits: *Fac x3) -6/Factory -6/Garrison (discovered 2 exits: *Fac x2) -6/Factory -6/Lower Caves -6/Lower Caves (discovered 2 exits: *Fac / *Dat) -6/Data Miner -5/Proximity Caves -5/Factory (discovered 2 exits: Fac / Gar) -5/Garrison (discovered 3 exits: *Fac x3) -5/Factory (discovered 3 exits: *Fac / *Upp x2) -5/Upper Caves -5/Upper Caves (discovered 2 exits: *Fac / *Zhi) -5/Zhirov -4/Proximity Caves -4/Factory -4/Garrison (discovered 3 exits: *Fac x3) -4/Factory -4/Garrison -3/Research (discovered 3 exits: *Res x2 / [*Qua]) -2/Research (discovered 3 exits: [*Acc] / Tes x2) -1/Access To Epsilon Eridani History --------- Turn | Location | Event 19 | -11/Scrapyard | Discovered new exit (range 3) 80 | -11/Scrapyard | Entered Materials 333 | -10/Materials | Build established: Mutant 402 | -10/Materials | Discovered new exit (range 6) 565 | -10/Materials | Central database locked down 565 | -10/Materials | Discovered new exit (range 7) 658 | -10/Materials | Discovered new exit (range 11) 885 | -10/Materials | Entered Mines 939 | -10/Mines | Discovered new exit (range 7) 974 | -10/Mines | Learned Materials stockpile data 999 | -10/Mines | Learned Materials terminal intel 1095 | -10/Mines | Found a damaged Exp. Sensor Array with a note attached 1099 | -10/Mines | Found Prototype Device 1158 | -10/Mines | Discovered new exit (range 4) 1385 | -10/Mines | Received a Rocket Launcher from a helpful Derelict 1835 | -10/Mines | Core integrity fell below 50% 2026 | -10/Mines | Assisted by bots powering up and referring to "LRC-V3" 2150 | -10/Mines | A weapon hastily lodged in a ceiling crevice suddenly fell to the ground 2273 | -10/Mines | Deemed a non-threat by the Exiles lab entrance 2273 | -10/Mines | Discovered new exit (range 5) 2283 | -10/Mines | Entered Exiles 2283 | -10/Exiles | Accompanied by 3 allies 2328 | -10/Exiles | Met 8R-AWN 2357 | -10/Exiles | Met EX-HEX 2420 | -10/Exiles | Met EX-BIN 2445 | -10/Exiles | Aligned with FarCom system 2447 | -10/Exiles | Given EX-Vault access code 2490 | -10/Exiles | Opened EX-Vault 2505 | -10/Exiles | Found AWS/Autocannon 2543 | -10/Exiles | Warned to stay clear of 0b10 Research branches 2566 | -10/Exiles | Exiles lab attacked by MAIN.C 2664 | -10/Exiles | Discovered new exit (range 14) 2684 | -10/Exiles | Left Exiles lab with AWS/Autocannon 2684 | -10/Exiles | Entered Mines 2684 | -9/Mines | Accompanied by 3 allies 2704 | -9/Mines | Met a Derelict bent on vengeance 2720 | -9/Mines | Discovered new exit (range 5) 2909 | -9/Mines | Learned Materials terminal intel 3017 | -9/Mines | Found a hidden stash of uninstalled traps 3206 | -9/Mines | Assembled infested the area 3296 | -9/Mines | Entered Materials 3296 | -8/Materials | Evolved 4 slots: Utility x2, Weapon x2 3298 | -8/Materials | Loaded intel: 12 terminal locations 3447 | -8/Materials | Identified exit to Garrison 3449 | -8/Materials | Entered Garrison 3546 | -8/Garrison | Triggered checkpoint 3607 | -8/Garrison | Garrison Relay disabled 3689 | -8/Garrison | Build established: Hauler-Skirmisher 3738 | -8/Garrison | Triggered checkpoint 3998 | -8/Garrison | Triggered checkpoint 4213 | -8/Garrison | Triggered checkpoint 4256 | -8/Garrison | Triggered checkpoint 4350 | -8/Garrison | Discovered new exit (range 13) 4544 | -8/Garrison | Triggered checkpoint 4752 | -8/Garrison | Garrison Relay disabled 5071 | -8/Garrison | Discovered new exit (range 10) 5106 | -8/Garrison | Installed Relay Interface Framework 5344 | -8/Garrison | Triggered checkpoint 5365 | -8/Garrison | Garrison Relay disabled 5418 | -8/Garrison | Discovered new exit (range 13) 6029 | -8/Garrison | Entered Factory 6029 | -7/Factory | Evolved 2 slots: Propulsion x2 7178 | -7/Factory | Build established: Bothacker-Skirmisher 7302 | -7/Factory | Identified exit to Factory 7489 | -7/Factory | Identified exit to Garrison 7490 | -7/Factory | Entered Garrison 7526 | -7/Garrison | Triggered checkpoint 7562 | -7/Garrison | Garrison Relay disabled 7623 | -7/Garrison | Triggered checkpoint 7670 | -7/Garrison | Triggered checkpoint 7732 | -7/Garrison | Destroyed 11 combat bots 7779 | -7/Garrison | Discovered new exit (range 15) 7836 | -7/Garrison | Triggered checkpoint 7903 | -7/Garrison | Garrison Relay disabled 8017 | -7/Garrison | Discovered new exit (range 11) 8037 | -7/Garrison | Expanded RIF knowledge: Threat Obfuscation 8124 | -7/Garrison | Triggered checkpoint 8160 | -7/Garrison | Triggered checkpoint 8210 | -7/Garrison | Discovered new exit (range 8) 8246 | -7/Garrison | Garrison Relay disabled 8350 | -7/Garrison | Triggered checkpoint 8396 | -7/Garrison | Garrison Relay disabled 8565 | -7/Garrison | Entered Factory 8651 | -7/Factory | Identified exit to Garrison 8652 | -7/Factory | Entered Garrison 8708 | -7/Garrison | Triggered checkpoint 8761 | -7/Garrison | Garrison Relay disabled 8814 | -7/Garrison | Triggered checkpoint 8818 | -7/Garrison | Triggered checkpoint 8899 | -7/Garrison | Discovered exit to Factory (range 11) 8976 | -7/Garrison | Triggered checkpoint 9169 | -7/Garrison | Garrison Relay disabled 9224 | -7/Garrison | Triggered checkpoint 9224 | -7/Garrison | Triggered checkpoint 9482 | -7/Garrison | Discovered exit to Factory (range 9) 9550 | -7/Garrison | Triggered checkpoint 9646 | -7/Garrison | Garrison Relay disabled 9762 | -7/Garrison | Triggered checkpoint 9920 | -7/Garrison | Discovered exit to Factory (range 14) 9943 | -7/Garrison | Expanded RIF knowledge: Zone Cloak 10045 | -7/Garrison | Entered Factory 10045 | -6/Factory | Evolved 2 slots: Propulsion x2 10248 | -6/Factory | Identified exit to Garrison 10249 | -6/Factory | Entered Garrison 10264 | -6/Garrison | Triggered checkpoint 10406 | -6/Garrison | Discovered new exit (range 15) 10478 | -6/Garrison | Triggered checkpoint 10542 | -6/Garrison | Triggered checkpoint 10605 | -6/Garrison | Discovered new exit (range 14) 10617 | -6/Garrison | Expanded RIF knowledge: Watcher Feeds 10620 | -6/Garrison | Entered Factory 11161 | -6/Factory | Discovered new exit (range 8) 11172 | -6/Factory | Entered Lower Caves 11207 | -6/Lower Caves | Lost 4 parts (1n3w) 11208 | -6/Lower Caves | Identified Exp. Sensor Array 11483 | -6/Lower Caves | Learned location of 1 exit from Factory 11805 | -6/Lower Caves | Discovered new exit (range 16) 11825 | -6/Lower Caves | Identified exit to Lower Caves 11879 | -6/Lower Caves | Entered another Lower Caves area 11935 | -6/Lower Caves | Discovered new exit (range 13) 11954 | -6/Lower Caves | Identified exit to Factory 12202 | -6/Lower Caves | Encountered a Warlord checkpoint 12636 | -6/Lower Caves | Lost 5 parts (2p3n) 12875 | -6/Lower Caves | Discovered new exit (range 7) 12886 | -6/Lower Caves | Identified exit to Data Miner 12888 | -6/Lower Caves | Entered Data Miner 12888 | -6/Data Miner | Discovered new exit (range 6) 12923 | -6/Data Miner | Met Data Miner 12980 | -6/Data Miner | Learned location of Section 7 (-3) 12980 | -6/Data Miner | Acquired the access code to Warlord's prototype stash 13009 | -6/Data Miner | Received God Mode back door access code from Data Miner 13049 | -6/Data Miner | Identified exit to Proximity Caves 13050 | -6/Data Miner | Entered Proximity Caves 13233 | -5/Proximity Caves | Escorted by Enhanced Grunt 13265 | -5/Proximity Caves | Spotted B-75 Beast 13378 | -5/Proximity Caves | Attracted the attention of an 0b10 checkpoint 13395 | -5/Proximity Caves | Core integrity fell below 50% 13675 | -5/Proximity Caves | Build established: Bothacker-Mutant 13768 | -5/Proximity Caves | Discovered exit to Factory (range 14) 13837 | -5/Proximity Caves | Lost 3 parts (1p2n) 13927 | -5/Proximity Caves | Entered Factory 13927 | -5/Factory | Evolved 2 slots: Utility x2 13928 | -5/Factory | Identified exit to Factory 14190 | -5/Factory | Crushed by falling debris 14250 | -5/Factory | Identified exit to Garrison 14263 | -5/Factory | Entered Garrison 14272 | -5/Garrison | Expanded RIF knowledge: Alert ID Control 14358 | -5/Garrison | Triggered checkpoint 14406 | -5/Garrison | Garrison Relay disabled 14581 | -5/Garrison | Lost 4 parts (3n1w) 14637 | -5/Garrison | Lost 4 parts (1n1u2w) 14856 | -5/Garrison | Triggered checkpoint 14925 | -5/Garrison | Discovered new exit (range 8) 14958 | -5/Garrison | Triggered checkpoint 15035 | -5/Garrison | Garrison Relay disabled 15168 | -5/Garrison | Build established: Botlord-Skirmisher 15193 | -5/Garrison | Phase Generator disabled 15244 | -5/Garrison | Triggered checkpoint 15364 | -5/Garrison | Discovered new exit (range 10) 15705 | -5/Garrison | Discovered new exit (range 15) 15761 | -5/Garrison | Triggered checkpoint 15958 | -5/Garrison | Entered Factory 16533 | -5/Factory | Build established: Botlord-Mutant 16937 | -5/Factory | Fabricated Exp. Terrain Scanner (x1) 17096 | -5/Factory | Fabricated Exp. Sensor Array (x1) 17222 | -5/Factory | Discovered exit to Factory (range 16) 17989 | -5/Factory | Fabricated Linear Accelerator (x2) 18086 | -5/Factory | Discovered new exit (range 9) 18182 | -5/Factory | Identified exit to Upper Caves 18240 | -5/Factory | Entered Upper Caves 18252 | -5/Upper Caves | Learned Factory trap positions 18641 | -5/Upper Caves | Learned location of Armory (-3) 18784 | -5/Upper Caves | Discovered new exit (range 6) 18797 | -5/Upper Caves | Entered another Upper Caves area 18830 | -5/Upper Caves | Discovered exit to Factory (range 16) 18853 | -5/Upper Caves | Encountered a Warlord checkpoint 18901 | -5/Upper Caves | Build established: Botlord-Tank 18987 | -5/Upper Caves | Attracted the attention of an 0b10 checkpoint 19001 | -5/Upper Caves | System corruption reached 10% 19688 | -5/Upper Caves | Build established: Botlord-Gunner 20542 | -5/Upper Caves | Learned Factory stockpile data 20621 | -5/Upper Caves | Attacked by a delusional Derelict stockpiling parts 20764 | -5/Upper Caves | Build established: Botlord-Tank 20941 | -5/Upper Caves | Discovered new exit (range 6) 20950 | -5/Upper Caves | Entered Zhirov 20950 | -5/Zhirov | Discovered new exit (range 3) 20979 | -5/Zhirov | Met Zhirov 21008 | -5/Zhirov | Learned location of Quarantine (-3) 21008 | -5/Zhirov | Learned location of Testing (-2) 21008 | -5/Zhirov | Learned location of Command (-1) 21040 | -5/Zhirov | Zhirov requested help retrieving the SGEMP Prototype 21071 | -5/Zhirov | Found Alien Artifact 21071 | -5/Zhirov | Identified Integrated Dissipator 21071 | -5/Zhirov | Installed Integrated Dissipator, increased core heat dissipation (+20) 21097 | -5/Zhirov | Found Alien Artifact 21366 | -5/Zhirov | Entered Proximity Caves 21580 | -4/Proximity Caves | Attracted the attention of an 0b10 checkpoint 21986 | -4/Proximity Caves | Spotted B-86 Titan 22399 | -4/Proximity Caves | Build established: Botlord-Mutant 22489 | -4/Proximity Caves | Lost 3 parts (1n1u1w) 22904 | -4/Proximity Caves | Build established: Botlord-Skirmisher 22922 | -4/Proximity Caves | Learned Research terminal intel 23484 | -4/Proximity Caves | Discovered exit to Factory (range 9) 23499 | -4/Proximity Caves | Entered Factory 23499 | -4/Factory | Evolved 2 slots: Utility x2 23500 | -4/Factory | Loaded intel: 122 trap records 23814 | -4/Factory | Build established: Botlord-Mutant 24238 | -4/Factory | Identified exit to Garrison 24243 | -4/Factory | Entered Garrison 24243 | -4/Garrison | Accompanied by 1 ally 24304 | -4/Garrison | Triggered checkpoint 24322 | -4/Garrison | Garrison Relay disabled 24483 | -4/Garrison | Spotted B-86 Titan 24539 | -4/Garrison | Destroyed B-86 Titan 24655 | -4/Garrison | Triggered checkpoint 24726 | -4/Garrison | Triggered checkpoint 24841 | -4/Garrison | Triggered checkpoint 24862 | -4/Garrison | Lost 5 parts (2n2u1w) 25049 | -4/Garrison | Build established: Botlord-Skirmisher 25374 | -4/Garrison | Discovered new exit (range 10) 25491 | -4/Garrison | Build established: Botlord-Tank 25738 | -4/Garrison | Discovered new exit (range 10) 25877 | -4/Garrison | Found Unknown Device 25877 | -4/Garrison | Identified Quantum Capacitor 25895 | -4/Garrison | Found Quantum Capacitor 26098 | -4/Garrison | Triggered checkpoint 26113 | -4/Garrison | Discovered new exit (range 10) 26139 | -4/Garrison | Expanded RIF knowledge: Coupler Efficiency 26210 | -4/Garrison | Entered Factory 26727 | -4/Factory | Identified Transdimensional Reconstructor 26727 | -4/Factory | Warped through subspace 26743 | -4/Factory | Identified exit to Garrison 26743 | -4/Factory | Entered Garrison 26751 | -4/Garrison | Expanded RIF knowledge: Autooverride 26832 | -4/Garrison | Triggered checkpoint 26950 | -4/Garrison | Garrison Relay disabled 27037 | -4/Garrison | Build established: Botlord-Mutant 27161 | -4/Garrison | Triggered checkpoint 27222 | -4/Garrison | Core integrity fell below 50% 27239 | -4/Garrison | Triggered checkpoint 27270 | -4/Garrison | Core integrity fell below 20% 27270 | -4/Garrison | Released all parts (4) 27287 | -4/Garrison | Discovered new exit (range 15) 27294 | -4/Garrison | Lost 22 parts (1p6n7u8w) 27295 | -4/Garrison | Entered Research 27295 | -3/Research | Evolved 2 slots: Power x1, Utility x1 27296 | -3/Research | Loaded intel: 20 terminal locations 27509 | -3/Research | Lost 7 parts (1p1n3u2w) 27630 | -3/Research | Found Prototype Processor 27630 | -3/Research | Identified Spectral Analyzer 27637 | -3/Research | Found Spectral Analyzer 27977 | -3/Research | Build established: Scavenger-Scout 27991 | -3/Research | Discovered new exit (range 18) 28002 | -3/Research | Found Fusion Bomb Launcher 28502 | -3/Research | Incoming assault squad redirected 28665 | -3/Research | Build established: Scavenger-Mutant 28791 | -3/Research | Discovered new exit (range 12) 28932 | -3/Research | Found Unknown Protection 28932 | -3/Research | Identified Hvy. Insulated Plating 29015 | -3/Research | Fabricated Adv. Hacking Suite (x1) 29255 | -3/Research | Discovered new exit (range 16) 29328 | -3/Research | Incoming investigation squad redirected 29371 | -3/Research | System corruption reached 10% 29426 | -3/Research | Core integrity fell below 50% 29603 | -3/Research | Entered another Research area 29603 | -2/Research | Evolved 2 slots: Propulsion x1, Utility x1 29735 | -2/Research | Garrison activated, responded to threat 29812 | -2/Research | Found Fusion Bomb Launcher 29883 | -2/Research | Found Prototype Processor 29883 | -2/Research | Identified Exp. Core Analyzer 30083 | -2/Research | Discovered new exit (range 15) 30237 | -2/Research | Identified exit to Testing 30353 | -2/Research | First assault squad dispatched 30371 | -2/Research | Incoming assault squad redirected 30407 | -2/Research | Entered Access 30407 | -1/Access | Evolved 2 slots: Propulsion x1, Utility x1 30504 | -1/Access | Energy Cycler disabled 30539 | -1/Access | Destroyed 9 combat bots 30658 | -1/Access | Spotted B-99 Colossus 30666 | -1/Access | Spotted B-99 Colossus 30693 | -1/Access | Discovered new exit (range 5) 30696 | *** | Escaped! Last Messages --------------- 30683_ Penetrated by Slug. 30683_ Imp. Remote Force Field destroyed. 30683_ Penetrated by Slug. 30683_ Lgt. Quantum Reactor destroyed. 30683_ Slug penetrates B-99 Colossus. 30683_ U-05 Engineer builds a Wall. 30686_ Slug penetrates Sealed Heavy Doors. 30686_ Slammed into Sealed Heavy Doors. 30686_ Imp. Gyrokinetic Inverter destroyed. 30686_ System corrupted by crushing effect (+2). 30686_ Destabilizing: System interference. 30686_ Adv. Coolant Injector temporarily disabled. 30686_ Quantum Reactor permanently disabled. 30686_ Destabilizing: Short circuit. 30687_ K-01 Serf collects debris. 30689_ System corrupted: Matter fused (-10). 30693_ The Access Shell folds into the floor. 30693_ EXIT=FOUND 30694_ Slug penetrates Sealed Heavy Doors. [Achievement: 40k Club] Map ----- +----------------------------------------------------+ | # #?########## #???????????# #?????? | | # #?# # #???????????# #?????? | | + #?# * # #???????????# ####### | | # #?# " # #???????????# | | # #?#""" # #???????????# | | ?# #?# """ # #???????????# | | ?# #?# " # #???????????# """"" | | ??# #?# +! #???????????# """"" | | ??# #?# # #???????????# """"" | | ???# #?# # #???????????# """"" | | ???# #?########## ##??????????# """"" | | ##????# #?????????# ############ """"" | | ??????# #?????????# | | ?#????# #?????????# | | ?# ???# #?????????# ############## | | ?# ???# #?????????######????????????# | | ## #### #???????????????????????????? | | #???????????????????????????? | | h#???????????????????????????? ### | | hY#????????????????????##?????? #?# | | """"" #########??########## ####### #?# | | " """ # "??" w #?? | | " h# BB "??" #???? | | " BB "??" #????????? | | """" #????????? | | "@ #????????? | | """" "" #????????? | | BB "??" #????????? | | ########## BB "?" #????????? | | ????????#" ""?" """ """ #????????? | | ????????## "??" """T""????????????? | | ?????????#########??########## ####??????????????? | | ??????????????????????????????##?????????????????? | | ?????????????????????????????????????????????????? | | ?????????????????????????????????????????????????? | | ?????????????????????????????????????????????????? | | ?????????????????????????????????????????????????? | | ?????????????????????????????????????????????????? | | ?????????????????????????????????????????????????? | | ?????????????????????????????????????????????????? | | ?????????????????????????????????????????????????? | | ?????????????????????????????????????????????????? | | ?????????????????????????????????????????????????? | | ?????????????????????????????????????????????????? | | ?????????????????????????w???????????????????????? | | ?????????????????????????????????????????????????? | | ?????????????????????????????????????????????????? | | ?????????????????????????????????????????????????? | | ?????????????????????????????????????????????????? | | ?????????????????????????????????????????????????? | +----------------------------------------------------+ Best States ------------- Heat Dissipation 91 Coolant Potential 100 Energy Generation 45 Energy Capacity 1640 Matter Stores 350 Matter Capacity 350 Sight Range 24 Robot Scan Range 30 Terrain Scan Range 30 Terrain Scan Density 10 Jamming Range 14 Additional Mass Support 18 Armor Coverage 825 Resistance: TH 30 Propulsion Shielding 66 Utility Shielding 66 Weapon Shielding 66 Phase Shifting 10 Evasion (%) 64 Melee Accuracy 6 Target Analysis 8 Recoil Reduction 6 Particle Charging 30 Offensive Hacking 26 Relay Coupler Types 71 Relay Coupler Value 2 Item Schematics ----------------- Combat Drone Bay | -6/Data Miner | Free Lgt. Regenerative Plating | -6/Data Miner | Free Cmb. Gravmag System | -6/Data Miner | Free Exp. Sensor Array | -6/Data Miner | Free Exp. Terrain Scanner | -6/Data Miner | Free Mni. Smartbomb Launcher | -6/Data Miner | Free Assault Drone Bay | -5/Zhirov | Free Exp. Heat Sink | -5/Zhirov | Free Exp. Optical Array | -5/Zhirov | Free Imp. Arc Thrower | -5/Zhirov | Free Adv. Hacking Suite | -3/Research | Hacked Robot Schematics ------------------ S-27 Virus | -6/Data Miner | Free G-50 Soldier | -6/Data Miner | Free X-72 Disruptor | -6/Data Miner | Free H-66 Slayer | -6/Data Miner | Free I-36 Angel | -6/Data Miner | Free I-47 Archangel | -6/Data Miner | Free Fabricated ------------ Exp. Terrain Scanner | x1 | -5/Factory Exp. Sensor Array | x1 | -5/Factory Linear Accelerator | x2 | -5/Factory | Preloaded Adv. Hacking Suite | x1 | -3/Research Alien Tech Used ----------------- Integrated Dissipator Transdimensional Reconstructor Achievements -------------- 40k Club Assimilation Complete Error 47 Challenges ------------ None Game ------ Seed MassBeamMantle Manual? 0 Play Time 06:09:19 Cumulative 215.8 hours Start 2021.04.22 @ 16:27:23 End 2021.04.22 @ 23:13:17 Sessions 1 Manual Loads 0 Difficulty Rogue Special Mode None Game No. 133 Rogue 133 Adventurer 0 Explorer 0 Win Type 0 Total 4 Types 4/0/0/0/0/0/0/0/0 Lore% 46 Gallery% 68 Achievement% 54 Wizard Run 0 Options --------- ASCII 0 Keyboard 0 Movement Mouse Keybinds 0 Fullscreen 2 Font 18/TerminusBold Map View 76x50 Tactical HUD 1 Map Filters NONE Filters NONE Steam 1 RUN: db956515-5403-439d-9cc9-b3004f1eee62